[Event "Live Chess"]
[Site "Chess.com"]
[Date "2024.06.01"]
[Round "-"]
[White "NottheBishopSacrifice"]
[Black "SirGerhard"]
[Result "1-0"]
[WhiteElo "2295"]
[BlackElo "2757"]
[TimeControl "300"]
[EndTime "11:27:43 PDT"]
[Termination "NottheBishopSacrifice won by resignation"]

1. d4 {[%clk 0:04:57.9]} 1... Nf6 {[%clk 0:04:58]} 2. Bf4 {[%clk 0:04:57.4]}
2... e6 {[%clk 0:04:56.8]} 3. e3 {[%clk 0:04:56.5]} 3... b6 {[%clk 0:04:56.3]}
4. Nf3 {[%clk 0:04:54.6]} 4... Bb7 {[%clk 0:04:55.1]} 5. Be2 {[%clk 0:04:53.9]}
5... Be7 {[%clk 0:04:54.6]} 6. O-O {[%clk 0:04:51.3]} 6... O-O {[%clk 0:04:54]}
7. c4 {[%clk 0:04:50.6]} 7... c5 {[%clk 0:04:51]} 8. Nc3 {[%clk 0:04:48.3]} 8...
cxd4 {[%clk 0:04:50.2]} 9. exd4 {[%clk 0:04:47.5]} 9... d5 {[%clk 0:04:49.3]}
10. cxd5 {[%clk 0:04:46.2]} 10... Nxd5 {[%clk 0:04:48.3]} 11. Bg3 {[%clk
0:04:45.4]} 11... Nd7 {[%clk 0:04:46.3]} 12. Qd2 {[%clk 0:04:39.2]} 12... N7f6
{[%clk 0:04:44.3]} 13. Bd3 {[%clk 0:04:38.3]} 13... Nxc3 {[%clk 0:04:40.9]} 14.
bxc3 {[%clk 0:04:36.9]} 14... Bxf3 {[%clk 0:04:40.2]} 15. gxf3 {[%clk
0:04:36.4]} 15... Rc8 {[%clk 0:04:39.2]} 16. Ba6 {[%clk 0:04:18.3]} 16... Nd5
{[%clk 0:04:36.5]} 17. Bxc8 {[%clk 0:04:15.5]} 17... Qxc8 {[%clk 0:04:35.9]} 18.
Rac1 {[%clk 0:04:13.1]} 18... Qc4 {[%clk 0:04:34.6]} 19. Rfe1 {[%clk 0:04:06]}
19... Rc8 {[%clk 0:04:33.6]} 20. Qe2 {[%clk 0:04:04.9]} 20... Ba3 {[%clk
0:04:04.7]} 21. Qxc4 {[%clk 0:03:59.2]} 21... Rxc4 {[%clk 0:04:03.7]} 22. Rc2
{[%clk 0:03:58.6]} 22... h6 {[%clk 0:04:02.6]} 23. Kf1 {[%clk 0:03:52.1]} 23...
b5 {[%clk 0:04:01.5]} 24. Rb1 {[%clk 0:03:45.1]} 24... b4 {[%clk 0:03:57.3]} 25.
Rb3 {[%clk 0:03:33.7]} 25... a5 {[%clk 0:03:55.7]} 26. Rb1 {[%clk 0:02:54.9]}
26... Nxc3 {[%clk 0:03:49.5]} 27. Re1 {[%clk 0:02:49.6]} 27... a4 {[%clk
0:03:34.8]} 28. Bd6 {[%clk 0:02:43.9]} 28... Rxd4 {[%clk 0:03:28]} 29. Be5
{[%clk 0:02:38.5]} 29... Rd3 {[%clk 0:03:21.8]} 30. Bxc3 {[%clk 0:02:33.4]}
30... bxc3 {[%clk 0:03:20.7]} 31. Re4 {[%clk 0:02:31.1]} 31... Rxf3 {[%clk
0:03:07.2]} 32. Rxa4 {[%clk 0:02:29.1]} 32... Bb2 {[%clk 0:03:06.7]} 33. Rb4
{[%clk 0:02:25.1]} 33... Rd3 {[%clk 0:02:56.1]} 34. a4 {[%clk 0:02:22.6]} 34...
Rd1+ {[%clk 0:02:53.4]} 35. Ke2 {[%clk 0:02:20.9]} 35... Ra1 {[%clk 0:02:53]}
36. Kd3 {[%clk 0:02:20.5]} 36... Kf8 {[%clk 0:02:19.9]} 37. Kc4 {[%clk
0:02:18.6]} 37... Ke7 {[%clk 0:02:19]} 38. Rb7+ {[%clk 0:02:11.1]} 38... Kf6
{[%clk 0:02:17.2]} 39. Kb5 {[%clk 0:02:09.6]} 39... Rd1 {[%clk 0:02:15.9]} 40.
a5 {[%clk 0:02:01.5]} 40... Rd5+ {[%clk 0:02:13.9]} 41. Ka4 {[%clk 0:01:55.8]}
41... Rd4+ {[%clk 0:02:02.5]} 42. Kb5 {[%clk 0:01:49]} 42... Rd5+ {[%clk
0:01:57.4]} 43. Kb6 {[%clk 0:01:48.2]} 43... Rd6+ {[%clk 0:01:32.8]} 44. Ka7
{[%clk 0:01:38.7]} 44... Ke5 {[%clk 0:01:28.4]} 45. Rbxb2 {[%clk 0:01:20.1]}
45... cxb2 {[%clk 0:01:26.9]} 46. Rxb2 {[%clk 0:01:20]} 46... f5 {[%clk
0:01:11.7]} 47. a6 {[%clk 0:01:18.4]} 47... Rd7+ {[%clk 0:01:07.9]} 48. Kb8
{[%clk 0:01:15.4]} 48... Kf4 {[%clk 0:00:51.2]} 49. a7 {[%clk 0:01:13.9]} 49...
Rxa7 {[%clk 0:00:46.9]} 50. Kxa7 {[%clk 0:01:12.8]} 50... e5 {[%clk 0:00:43]}
51. Kb6 {[%clk 0:01:11.7]} 51... e4 {[%clk 0:00:42.3]} 52. Kc5 {[%clk
0:01:11.1]} 52... Kf3 {[%clk 0:00:40.9]} 53. Kd4 {[%clk 0:01:10]} 53... f4
{[%clk 0:00:40.2]} 54. Rb3+ {[%clk 0:01:00.6]} 54... Kxf2 {[%clk 0:00:35.1]} 55.
Kxe4 {[%clk 0:01:00.1]} 55... g5 {[%clk 0:00:34.8]} 56. Rb6 {[%clk 0:00:56.1]}
56... f3 {[%clk 0:00:24.1]} 57. Rb2+ {[%clk 0:00:52.5]} 1-0

[Event "Live Chess"]
[Site "Chess.com"]
[Date "2024.06.01"]
[Round "-"]
[White "Isambard_Thomas"]
[Black "Nazarenko_vital"]
[Result "1-0"]
[WhiteElo "2163"]
[BlackElo "1473"]
[TimeControl "300"]
[EndTime "11:28:03 PDT"]
[Termination "Isambard_Thomas won by resignation"]

1. d4 {[%clk 0:04:57.9]} 1... Nf6 {[%clk 0:04:57.5]} 2. Bg5 {[%clk 0:04:56.9]}
2... Ne4 {[%clk 0:04:55.1]} 3. h4 {[%clk 0:04:56.2]} 3... h6 {[%clk 0:04:49.7]}
4. Bf4 {[%clk 0:04:51.7]} 4... e6 {[%clk 0:04:44.5]} 5. e3 {[%clk 0:04:42]} 5...
d5 {[%clk 0:04:42.2]} 6. Nd2 {[%clk 0:04:36.8]} 6... c5 {[%clk 0:04:39.6]} 7.
Nxe4 {[%clk 0:04:32.4]} 7... dxe4 {[%clk 0:04:38.4]} 8. dxc5 {[%clk 0:04:29.2]}
8... Qxd1+ {[%clk 0:04:35.5]} 9. Rxd1 {[%clk 0:04:29.1]} 9... Bxc5 {[%clk
0:04:32.3]} 10. Ne2 {[%clk 0:04:24.6]} 10... Nc6 {[%clk 0:04:27.4]} 11. Ng3
{[%clk 0:04:18.8]} 11... O-O {[%clk 0:04:22.8]} 12. Nxe4 {[%clk 0:04:13.7]}
12... Bb6 {[%clk 0:04:19.8]} 13. Bg3 {[%clk 0:04:08.3]} 13... e5 {[%clk
0:04:06.9]} 14. Nd6 {[%clk 0:04:02.3]} 14... Rd8 {[%clk 0:03:47]} 15. Bc4 {[%clk
0:03:57.3]} 15... Be6 {[%clk 0:03:43.9]} 16. Bxe6 {[%clk 0:03:49.5]} 16... fxe6
{[%clk 0:03:40.9]} 17. Ke2 {[%clk 0:03:48.9]} 17... Rab8 {[%clk 0:03:20.7]} 18.
h5 {[%clk 0:03:42.9]} 18... Bc5 {[%clk 0:03:13]} 19. Nc4 {[%clk 0:03:33.2]}
19... Rxd1 {[%clk 0:03:04.9]} 20. Rxd1 {[%clk 0:03:31.5]} 20... Rd8 {[%clk
0:02:55.3]} 21. Rxd8+ {[%clk 0:03:24.5]} 21... Nxd8 {[%clk 0:02:53.6]} 22. Nxe5
{[%clk 0:03:23.8]} 22... Nf7 {[%clk 0:02:41.7]} 23. c4 {[%clk 0:03:17.5]} 23...
Nxe5 {[%clk 0:02:39.4]} 24. Bxe5 {[%clk 0:03:15.5]} 24... a5 {[%clk 0:02:34.8]}
25. Bd4 {[%clk 0:02:57.8]} 25... Bd6 {[%clk 0:02:25.2]} 26. f4 {[%clk
0:02:52.4]} 26... Kf7 {[%clk 0:02:22]} 27. g4 {[%clk 0:02:51.4]} 27... g6 {[%clk
0:02:20.9]} 28. hxg6+ {[%clk 0:02:45.5]} 28... Kxg6 {[%clk 0:02:19]} 29. Kd3
{[%clk 0:02:42.9]} 29... h5 {[%clk 0:02:17.9]} 30. gxh5+ {[%clk 0:02:41.6]}
30... Kxh5 {[%clk 0:02:17]} 31. c5 {[%clk 0:02:36.4]} 31... Be7 {[%clk
0:02:05.7]} 32. Ke4 {[%clk 0:02:34.7]} 32... Kg6 {[%clk 0:02:00.1]} 33. a4
{[%clk 0:02:27.8]} 33... Kf7 {[%clk 0:01:46.2]} 34. Kd3 {[%clk 0:02:23]} 34...
Bd8 {[%clk 0:01:40.6]} 35. Kc4 {[%clk 0:02:21.8]} 35... Ke7 {[%clk 0:01:38.1]}
36. Kb5 {[%clk 0:02:20.5]} 36... Kd7 {[%clk 0:01:36.8]} 37. Bc3 {[%clk
0:02:09.2]} 37... Kc8 {[%clk 0:01:24.3]} 38. Bxa5 {[%clk 0:02:07.5]} 38... Bxa5
{[%clk 0:01:22.9]} 39. Kxa5 {[%clk 0:02:06.2]} 39... Kc7 {[%clk 0:01:22]} 40. b4
{[%clk 0:02:03.4]} 40... Kc6 {[%clk 0:01:21.1]} 41. e4 {[%clk 0:02:00.5]} 41...
Kc7 {[%clk 0:01:16.5]} 42. Kb5 {[%clk 0:01:59.3]} 42... Kb8 {[%clk 0:01:07.3]}
43. c6 {[%clk 0:01:56.7]} 43... Kc7 {[%clk 0:00:56.2]} 44. cxb7 {[%clk
0:01:55.1]} 44... Kxb7 {[%clk 0:00:55.3]} 45. Kc5 {[%clk 0:01:54.3]} 45... Kc7
{[%clk 0:00:54.3]} 46. a5 {[%clk 0:01:52.6]} 46... Kb7 {[%clk 0:00:50]} 47. b5
{[%clk 0:01:51.8]} 47... Kc7 {[%clk 0:00:48.2]} 48. f5 {[%clk 0:01:51.1]} 1-0

[Event "Live Chess"]
[Site "Chess.com"]
[Date "2024.06.01"]
[Round "-"]
[White "jimwad"]
[Black "chess5013"]
[Result "0-1"]
[WhiteElo "1239"]
[BlackElo "1281"]
[TimeControl "300"]
[EndTime "11:28:12 PDT"]
[Termination "chess5013 won by resignation"]

1. d4 {[%clk 0:04:58.1]} 1... d5 {[%clk 0:04:58.3]} 2. c4 {[%clk 0:04:57.3]}
2... Nc6 {[%clk 0:04:55.6]} 3. Nc3 {[%clk 0:04:55.9]} 3... e6 {[%clk 0:04:40.6]}
4. Bf4 {[%clk 0:04:51.5]} 4... Bb4 {[%clk 0:04:38.4]} 5. e3 {[%clk 0:04:42.4]}
5... Nf6 {[%clk 0:04:35.7]} 6. Ne2 {[%clk 0:04:38.9]} 6... O-O {[%clk
0:04:34.2]} 7. a3 {[%clk 0:04:37.8]} 7... Bxc3+ {[%clk 0:04:32.7]} 8. Nxc3
{[%clk 0:04:36.7]} 8... dxc4 {[%clk 0:04:27.6]} 9. Bxc4 {[%clk 0:04:35.3]} 9...
Nd5 {[%clk 0:04:18.2]} 10. Nxd5 {[%clk 0:04:32.3]} 10... exd5 {[%clk 0:04:17]}
11. Bd3 {[%clk 0:04:28.8]} 11... Be6 {[%clk 0:04:01.6]} 12. O-O {[%clk
0:04:26.9]} 12... Na5 {[%clk 0:03:52.4]} 13. b4 {[%clk 0:04:20.2]} 13... Nc4
{[%clk 0:03:51.1]} 14. Qc2 {[%clk 0:04:08.6]} 14... g6 {[%clk 0:03:44.5]} 15.
Rfc1 {[%clk 0:04:02.1]} 15... b5 {[%clk 0:03:42.4]} 16. Bh6 {[%clk 0:03:52.9]}
16... Re8 {[%clk 0:03:39.5]} 17. Qe2 {[%clk 0:03:50.1]} 17... Qh4 {[%clk
0:03:25.5]} 18. Bf4 {[%clk 0:03:44.5]} 18... Qf6 {[%clk 0:03:22.8]} 19. Bg3
{[%clk 0:03:39.8]} 19... c6 {[%clk 0:03:15.4]} 20. Be5 {[%clk 0:03:31]} 20...
Nxe5 {[%clk 0:03:10.2]} 21. dxe5 {[%clk 0:03:30]} 21... Qxe5 {[%clk 0:03:09.5]}
22. Rxc6 {[%clk 0:03:28.1]} 22... Qxa1+ {[%clk 0:03:07.9]} 0-1

[Event "Live Chess"]
[Site "Chess.com"]
[Date "2024.06.01"]
[Round "-"]
[White "elephantgerrald"]
[Black "viktorskliarov"]
[Result "0-1"]
[WhiteElo "756"]
[BlackElo "2646"]
[TimeControl "300"]
[EndTime "11:28:23 PDT"]
[Termination "viktorskliarov won by checkmate"]

1. e4 {[%clk 0:04:57.5]} 1... c5 {[%clk 0:04:58.6]} 2. Nf3 {[%clk 0:04:54.3]}
2... Nc6 {[%clk 0:04:57.5]} 3. Nc3 {[%clk 0:04:52.1]} 3... Nf6 {[%clk
0:04:56.1]} 4. Bb5 {[%clk 0:04:49.1]} 4... Nd4 {[%clk 0:04:53.6]} 5. Nxd4 {[%clk
0:04:47.2]} 5... cxd4 {[%clk 0:04:52.2]} 6. Nd5 {[%clk 0:04:46.3]} 6... Nxe4
{[%clk 0:04:34.9]} 7. Qe2 {[%clk 0:04:42.9]} 7... Nd6 {[%clk 0:04:33.5]} 8. d3
{[%clk 0:04:33.9]} 8... e6 {[%clk 0:04:22.3]} 9. Qf3 {[%clk 0:04:04.9]} 9...
Nxb5 {[%clk 0:04:13.3]} 10. a4 {[%clk 0:03:54.9]} 10... Nc7 {[%clk 0:04:08.8]}
11. Nxc7+ {[%clk 0:03:48.1]} 11... Qxc7 {[%clk 0:04:08.7]} 12. O-O {[%clk
0:03:45.8]} 12... Bd6 {[%clk 0:04:03.5]} 13. g3 {[%clk 0:03:37.4]} 13... O-O
{[%clk 0:04:02.3]} 14. Qg4 {[%clk 0:03:15.7]} 14... f5 {[%clk 0:03:55]} 15. Qg5
{[%clk 0:03:07.4]} 15... b6 {[%clk 0:03:51.5]} 16. h4 {[%clk 0:02:47.9]} 16...
Bb7 {[%clk 0:03:48]} 17. b3 {[%clk 0:02:45.5]} 17... Qc6 {[%clk 0:03:41.5]} 18.
f3 {[%clk 0:02:40]} 18... Qxc2 {[%clk 0:03:36.2]} 19. Rf2 {[%clk 0:02:24.8]}
19... Qd1+ {[%clk 0:03:33.9]} 20. Rf1 {[%clk 0:02:22]} 20... Qxd3 {[%clk
0:03:32.6]} 21. Bb2 {[%clk 0:02:16.6]} 21... h6 {[%clk 0:03:27.6]} 22. Qg6
{[%clk 0:02:12.2]} 22... Rf6 {[%clk 0:03:26.3]} 23. Rad1 {[%clk 0:02:05.4]}
23... Rxg6 {[%clk 0:03:23.7]} 24. Rxd3 {[%clk 0:02:03.2]} 24... Rxg3+ {[%clk
0:03:23.6]} 25. Kf2 {[%clk 0:02:00.5]} 25... Rc8 {[%clk 0:03:22]} 26. f4 {[%clk
0:01:34]} 26... Rg2+ {[%clk 0:03:15.9]} 27. Ke1 {[%clk 0:01:27]} 27... Rxb2
{[%clk 0:03:15.8]} 28. Rxd4 {[%clk 0:01:14.9]} 28... Rc1+ {[%clk 0:03:12.6]} 29.
Rd1 {[%clk 0:01:12.3]} 29... Bb4# {[%clk 0:03:12.5]} 0-1

[Event "Live Chess"]
[Site "Chess.com"]
[Date "2024.06.01"]
[Round "-"]
[White "TJ-W"]
[Black "oscalik"]
[Result "1-0"]
[WhiteElo "1567"]
[BlackElo "2352"]
[TimeControl "300"]
[EndTime "11:28:25 PDT"]
[Termination "TJ-W won by checkmate"]

1. e4 {[%clk 0:04:58]} 1... c5 {[%clk 0:04:58.8]} 2. Nc3 {[%clk 0:04:55.3]} 2...
Nc6 {[%clk 0:04:57.7]} 3. Bb5 {[%clk 0:04:52]} 3... Nd4 {[%clk 0:04:56.5]} 4.
Ba4 {[%clk 0:04:50.3]} 4... a6 {[%clk 0:04:54.6]} 5. Bb3 {[%clk 0:04:39.7]} 5...
e6 {[%clk 0:04:52.7]} 6. Nf3 {[%clk 0:04:36.4]} 6... Nf6 {[%clk 0:04:51.1]} 7.
Nxd4 {[%clk 0:04:33.6]} 7... cxd4 {[%clk 0:04:51]} 8. Ne2 {[%clk 0:04:32.3]}
8... Nxe4 {[%clk 0:04:50.3]} 9. Nxd4 {[%clk 0:04:27.5]} 9... Bc5 {[%clk
0:04:49.6]} 10. Qf3 {[%clk 0:04:14.4]} 10... d5 {[%clk 0:04:46.2]} 11. Ne2
{[%clk 0:03:57]} 11... Bxf2+ {[%clk 0:04:41.4]} 12. Kd1 {[%clk 0:03:54.2]} 12...
h5 {[%clk 0:04:38.5]} 13. d3 {[%clk 0:03:52.2]} 13... Bh4 {[%clk 0:04:25.4]} 14.
Rf1 {[%clk 0:03:38.7]} 14... Nf2+ {[%clk 0:04:23.6]} 15. Kd2 {[%clk 0:03:27.3]}
15... Bg5+ {[%clk 0:04:22.6]} 16. Ke1 {[%clk 0:03:23.4]} 16... Bxc1 {[%clk
0:04:20.6]} 17. Rxf2 {[%clk 0:03:15.5]} 17... Qa5+ {[%clk 0:04:15.1]} 18. c3
{[%clk 0:03:10.4]} 18... Bxb2 {[%clk 0:04:13.9]} 19. Qxf7+ {[%clk 0:03:06]}
19... Kd8 {[%clk 0:04:13.2]} 20. Qxg7 {[%clk 0:02:51.1]} 20... Re8 {[%clk
0:04:08.8]} 21. Rb1 {[%clk 0:02:35.3]} 21... Ba3 {[%clk 0:04:04.9]} 22. Rf7
{[%clk 0:02:28.3]} 22... b5 {[%clk 0:03:49.5]} 23. Qf6+ {[%clk 0:02:13]} 23...
Be7 {[%clk 0:03:46.5]} 24. Qg6 {[%clk 0:01:52.1]} 24... Qb6 {[%clk 0:03:44.4]}
25. Nd4 {[%clk 0:01:43.4]} 25... Bd7 {[%clk 0:03:41.8]} 26. Qxh5 {[%clk
0:01:28.1]} 26... a5 {[%clk 0:03:38.8]} 27. Bxd5 {[%clk 0:01:18]} 27... exd5
{[%clk 0:03:36.6]} 28. Qxd5 {[%clk 0:01:14.8]} 28... Rc8 {[%clk 0:03:36.2]} 29.
Rxb5 {[%clk 0:01:06.1]} 29... Qg6 {[%clk 0:03:30.8]} 30. Rg7 {[%clk 0:00:53]}
30... Qxd3 {[%clk 0:03:28.4]} 31. Ne6# {[%clk 0:00:46.6]} 1-0

[Event "Live Chess"]
[Site "Chess.com"]
[Date "2024.06.01"]
[Round "-"]
[White "Andorranarmy"]
[Black "Andysav3"]
[Result "1/2-1/2"]
[WhiteElo "2045"]
[BlackElo "1865"]
[TimeControl "300"]
[EndTime "11:28:43 PDT"]
[Termination "Game drawn by agreement"]

1. e4 {[%clk 0:04:59.5]} 1... c5 {[%clk 0:04:57.8]} 2. Nc3 {[%clk 0:04:58]} 2...
e6 {[%clk 0:04:56.1]} 3. Nf3 {[%clk 0:04:57.6]} 3... d5 {[%clk 0:04:53.9]} 4.
exd5 {[%clk 0:04:54.4]} 4... exd5 {[%clk 0:04:52.8]} 5. d4 {[%clk 0:04:53.8]}
5... Nc6 {[%clk 0:04:48.4]} 6. dxc5 {[%clk 0:04:50.8]} 6... d4 {[%clk
0:04:41.1]} 7. Ne4 {[%clk 0:04:36.7]} 7... Bf5 {[%clk 0:04:35.8]} 8. Bd3 {[%clk
0:04:34.3]} 8... Nf6 {[%clk 0:04:14.5]} 9. Nd6+ {[%clk 0:04:14.8]} 9... Bxd6
{[%clk 0:04:10.2]} 10. cxd6 {[%clk 0:04:10]} 10... Bxd3 {[%clk 0:04:05.6]} 11.
Qxd3 {[%clk 0:03:57.7]} 11... Qxd6 {[%clk 0:04:02.4]} 12. O-O {[%clk 0:03:56.4]}
12... O-O {[%clk 0:03:55]} 13. Be3 {[%clk 0:03:50.8]} 13... Rad8 {[%clk
0:03:48.3]} 14. Rad1 {[%clk 0:03:48.6]} 14... Nb4 {[%clk 0:03:38.6]} 15. Qxd4
{[%clk 0:03:43.3]} 15... Qxd4 {[%clk 0:03:10.2]} 16. Nxd4 {[%clk 0:03:41.6]}
16... a5 {[%clk 0:02:53.5]} 17. a3 {[%clk 0:03:38.1]} 17... Nc6 {[%clk
0:02:51.5]} 18. Nxc6 {[%clk 0:03:35.3]} 18... bxc6 {[%clk 0:02:50.8]} 19. Bb6
{[%clk 0:03:30.3]} 19... Ra8 {[%clk 0:02:41]} 20. Rd6 {[%clk 0:03:25.7]} 20...
Nd5 {[%clk 0:02:30.2]} 21. Rxc6 {[%clk 0:03:19.5]} 21... Ra6 {[%clk 0:02:28.5]}
22. c4 {[%clk 0:02:45]} 22... Rxb6 {[%clk 0:02:02.7]} 23. cxd5 {[%clk
0:02:42.6]} 23... Rxb2 {[%clk 0:01:57.7]} 24. Rd1 {[%clk 0:02:35.2]} 24... g6
{[%clk 0:01:55.8]} 25. d6 {[%clk 0:02:33.7]} 25... Rd8 {[%clk 0:01:54.6]} 26. d7
{[%clk 0:02:12.3]} 26... Rxd7 {[%clk 0:01:51.2]} 27. Rcc1 {[%clk 0:01:47.2]}
27... Rxd1+ {[%clk 0:01:45.9]} 28. Rxd1 {[%clk 0:01:47.1]} 28... Rb3 {[%clk
0:01:43.9]} 29. Ra1 {[%clk 0:01:45.4]} 29... a4 {[%clk 0:01:42.8]} 30. Kf1
{[%clk 0:01:43.1]} 30... Kg7 {[%clk 0:01:41.8]} 31. g3 {[%clk 0:01:42.2]} 31...
h5 {[%clk 0:01:40.8]} 32. Ke2 {[%clk 0:01:41.1]} 32... Rb2+ {[%clk 0:01:37.4]}
33. Kf3 {[%clk 0:01:39.9]} 33... Rb3+ {[%clk 0:01:36.6]} 34. Kg2 {[%clk
0:01:38.9]} 34... Rb2 {[%clk 0:01:34.9]} 1/2-1/2

[Event "Live Chess"]
[Site "Chess.com"]
[Date "2024.06.01"]
[Round "-"]
[White "Sokolik_UA"]
[Black "EgbertIII"]
[Result "0-1"]
[WhiteElo "803"]
[BlackElo "1446"]
[TimeControl "300"]
[EndTime "11:29:06 PDT"]
[Termination "EgbertIII won by checkmate"]

1. e4 {[%clk 0:04:57]} 1... c6 {[%clk 0:04:58.3]} 2. d4 {[%clk 0:04:56.6]} 2...
d5 {[%clk 0:04:57.2]} 3. exd5 {[%clk 0:04:55.6]} 3... cxd5 {[%clk 0:04:55.6]} 4.
Nc3 {[%clk 0:04:55.3]} 4... Nc6 {[%clk 0:04:54.1]} 5. Be3 {[%clk 0:04:54.9]}
5... Bf5 {[%clk 0:04:52.5]} 6. Nf3 {[%clk 0:04:50.8]} 6... e6 {[%clk 0:04:51.4]}
7. Ne5 {[%clk 0:04:49.6]} 7... Nxe5 {[%clk 0:04:48.6]} 8. dxe5 {[%clk
0:04:48.9]} 8... a6 {[%clk 0:04:39.2]} 9. Bd4 {[%clk 0:04:48.3]} 9... Ne7 {[%clk
0:04:27.3]} 10. Be2 {[%clk 0:04:41.6]} 10... Nc6 {[%clk 0:04:25.8]} 11. O-O
{[%clk 0:04:29.3]} 11... Nxd4 {[%clk 0:04:20.2]} 12. Qxd4 {[%clk 0:04:27.9]}
12... Rc8 {[%clk 0:04:19]} 13. Bg4 {[%clk 0:04:21.4]} 13... Bc5 {[%clk
0:04:13.1]} 14. Qa4+ {[%clk 0:04:17.2]} 14... b5 {[%clk 0:04:05.5]} 15. Qxa6
{[%clk 0:04:14.5]} 15... Bxg4 {[%clk 0:04:03.5]} 16. Nxb5 {[%clk 0:04:12.3]}
16... O-O {[%clk 0:03:50.1]} 17. Nd6 {[%clk 0:04:09.8]} 17... Bxd6 {[%clk
0:03:42.5]} 18. exd6 {[%clk 0:04:09.2]} 18... Rxc2 {[%clk 0:03:37.3]} 19. f3
{[%clk 0:04:04.6]} 19... Bf5 {[%clk 0:03:34.9]} 20. h4 {[%clk 0:03:56.6]} 20...
Qxh4 {[%clk 0:03:02]} 21. d7 {[%clk 0:03:44.1]} 21... Qg3 {[%clk 0:02:47.4]} 22.
Rf2 {[%clk 0:03:26.1]} 22... Qxf2+ {[%clk 0:02:40.6]} 23. Kh1 {[%clk 0:03:23.4]}
23... Qxg2# {[%clk 0:02:38.7]} 0-1

[Event "Live Chess"]
[Site "Chess.com"]
[Date "2024.06.01"]
[Round "-"]
[White "Mangoalo"]
[Black "LanceMaster23"]
[Result "0-1"]
[WhiteElo "1009"]
[BlackElo "1788"]
[TimeControl "300"]
[EndTime "11:29:11 PDT"]
[Termination "LanceMaster23 won by resignation"]

1. e4 {[%clk 0:04:58.3]} 1... c6 {[%clk 0:04:53.7]} 2. d4 {[%clk 0:04:56.8]}
2... d5 {[%clk 0:04:52.5]} 3. exd5 {[%clk 0:04:56.7]} 3... cxd5 {[%clk
0:04:51.4]} 4. Nc3 {[%clk 0:04:56]} 4... Nf6 {[%clk 0:04:50.5]} 5. Bg5 {[%clk
0:04:55.6]} 5... Bf5 {[%clk 0:04:42.7]} 6. Bb5+ {[%clk 0:04:51.4]} 6... Nc6
{[%clk 0:04:35.1]} 7. Qe2 {[%clk 0:04:47.3]} 7... e6 {[%clk 0:04:32.6]} 8. Nf3
{[%clk 0:04:42.3]} 8... Be7 {[%clk 0:04:28.4]} 9. Ne5 {[%clk 0:04:40]} 9... Rc8
{[%clk 0:04:24.5]} 10. Nxc6 {[%clk 0:04:20.4]} 10... bxc6 {[%clk 0:04:22.7]} 11.
Bd3 {[%clk 0:04:15.8]} 11... Bxd3 {[%clk 0:04:16.6]} 12. Qxd3 {[%clk 0:04:15.7]}
12... Qb6 {[%clk 0:04:13.8]} 13. Bxf6 {[%clk 0:04:13.4]} 13... Bxf6 {[%clk
0:04:12.3]} 14. O-O-O {[%clk 0:04:11.9]} 14... Rb8 {[%clk 0:04:07.2]} 15. b3
{[%clk 0:04:10.3]} 15... O-O {[%clk 0:04:04.6]} 16. Na4 {[%clk 0:04:09.5]} 16...
Qb4 {[%clk 0:04:01.7]} 17. Kb2 {[%clk 0:04:06.5]} 17... Qxa4 {[%clk 0:03:59.3]}
18. h4 {[%clk 0:03:58]} 18... c5 {[%clk 0:03:56.1]} 19. c4 {[%clk 0:03:53.7]}
19... Bxd4+ {[%clk 0:03:53.4]} 20. Kc2 {[%clk 0:03:50.5]} 20... Qxa2+ {[%clk
0:03:51.6]} 0-1

[Event "Live Chess"]
[Site "Chess.com"]
[Date "2024.06.01"]
[Round "-"]
[White "TigerTank70"]
[Black "educatedlad"]
[Result "1-0"]
[WhiteElo "2217"]
[BlackElo "1762"]
[TimeControl "300"]
[EndTime "11:29:17 PDT"]
[Termination "TigerTank70 won by resignation"]

1. e4 {[%clk 0:04:58.2]} 1... c5 {[%clk 0:04:58.4]} 2. d4 {[%clk 0:04:57.1]}
2... cxd4 {[%clk 0:04:57.2]} 3. c3 {[%clk 0:04:56.5]} 3... dxc3 {[%clk
0:04:57.1]} 4. Nxc3 {[%clk 0:04:55.2]} 4... Nc6 {[%clk 0:04:57]} 5. Nf3 {[%clk
0:04:54.6]} 5... e6 {[%clk 0:04:56.9]} 6. Bc4 {[%clk 0:04:51.1]} 6... a6 {[%clk
0:04:56.2]} 7. Qe2 {[%clk 0:04:50.3]} 7... b5 {[%clk 0:04:50.2]} 8. Bd3 {[%clk
0:04:48.1]} 8... Bb7 {[%clk 0:04:48.1]} 9. O-O {[%clk 0:04:46.9]} 9... Be7
{[%clk 0:04:43.1]} 10. Bf4 {[%clk 0:04:45.1]} 10... Rc8 {[%clk 0:04:41.6]} 11.
Rac1 {[%clk 0:04:42.3]} 11... Nf6 {[%clk 0:04:39.8]} 12. Rfd1 {[%clk 0:04:38.8]}
12... Nh5 {[%clk 0:04:38.3]} 13. Be3 {[%clk 0:04:35.7]} 13... f5 {[%clk
0:04:37.2]} 14. exf5 {[%clk 0:04:32.1]} 14... exf5 {[%clk 0:04:34.6]} 15. Bxf5
{[%clk 0:04:28.5]} 15... O-O {[%clk 0:04:30.5]} 16. Bxd7 {[%clk 0:04:24.7]}
16... Rc7 {[%clk 0:04:12.1]} 17. Be6+ {[%clk 0:04:23]} 17... Kh8 {[%clk
0:04:11.1]} 18. Rxd8 {[%clk 0:04:21.6]} 18... Rxd8 {[%clk 0:04:11]} 1-0

[Event "Live Chess"]
[Site "Chess.com"]
[Date "2024.06.01"]
[Round "-"]
[White "FortunatusMax"]
[Black "gunslinger222"]
[Result "0-1"]
[WhiteElo "914"]
[BlackElo "2268"]
[TimeControl "300"]
[EndTime "11:29:37 PDT"]
[Termination "gunslinger222 won by resignation"]

1. e4 {[%clk 0:04:59]} 1... d5 {[%clk 0:04:57.8]} 2. exd5 {[%clk 0:04:56]} 2...
Qxd5 {[%clk 0:04:57.7]} 3. Nc3 {[%clk 0:04:55.2]} 3... Qa5 {[%clk 0:04:55.4]} 4.
Nf3 {[%clk 0:04:51.5]} 4... Nf6 {[%clk 0:04:53.2]} 5. Bb5+ {[%clk 0:04:49.9]}
5... c6 {[%clk 0:04:52]} 6. Ba4 {[%clk 0:04:48.9]} 6... Bg4 {[%clk 0:04:50]} 7.
O-O {[%clk 0:04:47.3]} 7... e6 {[%clk 0:04:49.3]} 8. h3 {[%clk 0:04:44.6]} 8...
Bh5 {[%clk 0:04:46.6]} 9. g4 {[%clk 0:04:42.6]} 9... Nxg4 {[%clk 0:04:43.9]} 10.
hxg4 {[%clk 0:04:40.7]} 10... Bxg4 {[%clk 0:04:43.2]} 11. b3 {[%clk 0:04:33.3]}
11... Qh5 {[%clk 0:04:41]} 12. Nh2 {[%clk 0:04:29.5]} 12... Bxd1 {[%clk
0:04:39.2]} 13. Rxd1 {[%clk 0:04:27.1]} 13... Bd6 {[%clk 0:04:35.2]} 14. Kf1
{[%clk 0:04:11.9]} 14... Qxh2 {[%clk 0:04:32.6]} 15. Ke2 {[%clk 0:04:09.9]}
15... b5 {[%clk 0:04:31]} 16. Bxb5 {[%clk 0:04:06.8]} 16... cxb5 {[%clk
0:04:30]} 17. Nxb5 {[%clk 0:04:06.1]} 17... Qh5+ {[%clk 0:04:29]} 18. f3 {[%clk
0:04:03.9]} 18... Qxb5+ {[%clk 0:04:27.6]} 19. c4 {[%clk 0:04:03.3]} 19... Qe5+
{[%clk 0:04:26.5]} 20. Kf2 {[%clk 0:04:01.3]} 20... Qxa1 {[%clk 0:04:25.8]} 21.
d4 {[%clk 0:03:56.1]} 21... Ba3 {[%clk 0:04:24.6]} 0-1